fUSD/lending_fUSD_20240514
["ID","MTS","AMOUNT","RATE_DAILY","PERIOD"]
[326980618,1715676660683,150.0,0.00010959,2]
[326980619,1715676660706,60.73,0.00010959,2]
[326980620,1715676661893,-198.24970627,0.00011693,2]
[326980621,1715676663631,-356.32833697,0.00011693,2]
[326980623,1715676671432,150.0,0.00010959,2]
[326980624,1715676671454,25.61,0.00010959,2]
[326980625,1715676682152,124.39,0.00010959,2]
[326980626,1715676682175,150.0,0.00010959,2]
[326980627,1715676682195,243.86870397,0.00010959,2]
[326980628,1715676682218,359.82129603,0.00010959,2]
[326980629,1715676696158,180.08952442,0.00010959,2]
[326980630,1715676703266,361.96838615,0.00010959,2]
[326980631,1715676708208,7514.67941385,0.00010959,2]
[326980632,1715676712069,180.08952442,0.00010959,2]
[326980634,1715676717271,361.96838615,0.00010959,2]
[326980635,1715676722800,945.01413478,0.00010959,2]
[326980636,1715676724217,3278.4151399,0.00010959,2]
[326980638,1715676728069,180.25867977,0.00010959,2]
[326980639,1715676736813,947.3750921,0.00010959,2]
[326980640,1715676739278,211.65628969,0.00010959,2]
[326980662,1715677832039,-720.07,0.00011224,2]
[326980665,1715677832048,-500.0,0.00011231,2]
[326980667,1715677832058,-150.0,0.00011242,2]
[326980668,1715677832067,-162.56,0.00011248,3]
[326980670,1715677832076,-250.0,0.00011257,2]
[326980672,1715677832086,-250.0,0.00011258,2]
[326980673,1715677832095,-1204.76205397,0.00011278,2]
[326980674,1715677832105,-2983.27,0.00011279,2]
[326980675,1715677832114,-150.0,0.00011286,2]
[326980676,1715677832124,-150.0,0.00011286,2]
[326980677,1715677832134,-743.78,0.00011286,2]
[326980678,1715677832143,-20092.77191214,0.00011287,2]
[326980679,1715677832165,-3797.22808786,0.00011287,2]
[326980680,1715677832175,-299.99,0.00011287,2]
[326980681,1715677832185,-190.64,0.00011304,2]
[326980682,1715677832194,-156.1,0.00011311,2]
[326980683,1715677832204,-224.99,0.00011311,2]
[326980684,1715677832213,-314.82,0.00011311,2]
[326980685,1715677832223,-499.99,0.00011322,2]
[326980686,1715677832232,-5344.47,0.00011322,2]
[326980687,1715677832242,-167.75,0.000114,2]
[326980688,1715677832251,-256.22,0.00011464,2]
[326980689,1715677832261,-213.19,0.00011536,2]
[326980690,1715677832271,-156.1,0.00011605,2]
[326980691,1715677832281,-31.55015774,0.00011693,2]
[326980692,1715677832292,-9858.62962008,0.00011693,2]
[326980693,1715677832328,-505.38615579,0.00011693,2]
[326980694,1715677832340,-1290.90309334,0.00011693,2]
[326980695,1715677832360,-454.25461509,0.00011693,2]
[326980696,1715677832372,-1015.83173565,0.00011693,2]
[326980697,1715677832383,-1800.0,0.00011693,2]
[326980698,1715677832398,-253.92241788,0.00011693,2]
[326980699,1715677832411,-659.47,0.00011693,2]
[326980700,1715677832422,-1567.03507088,0.00011693,2]
[326980703,1715677832440,-833.79793316,0.00011693,2]
[326980706,1715677832456,-318.86689986,0.00011693,2]
[326980708,1715677832468,-341.48088377,0.00011693,2]
[326980710,1715677832479,-637.19490255,0.00011693,2]
[326980712,1715677832489,-189.10377411,0.00011693,2]
[326980715,1715677832508,-220.55416755,0.00011693,2]
[326980717,1715677832518,-1229.00177579,0.00011693,2]
[326980719,1715677832527,-155.0,0.00011693,2]
[326980721,1715677832537,-745.43664057,0.00011698,2]
[326980723,1715677832547,-500.0,0.00011702,2]
[326980725,1715677832556,-6949.31,0.00011702,2]
[326980727,1715677832566,-156.1,0.000119,2]
[326980729,1715677832576,-286.88697908,0.00012,2]
[326980763,1715677838127,-213.11301993,0.00012,2]
[326980766,1715677838137,-400.0,0.00012,4]
[326980768,1715677838146,-800.0,0.000121,4]
[326980770,1715677838156,-1000.0,0.0001218,2]
[326980772,1715677838166,-18402.85993857,0.000122,2]
[326980775,1715677838194,-780.80451043,0.000122,2]
[326980778,1715677838210,-48465.335551,0.000122,2]
[326980780,1715677838219,-1200.0,0.000122,4]
[326980782,1715677838229,-1005.37,0.00012208,2]
[326980784,1715677838238,-1005.37,0.00012211,2]
[326980786,1715677838247,-1005.37,0.00012214,2]
[326980788,1715677838256,-1005.37,0.00012218,2]
[326980790,1715677838266,-1005.37,0.00012221,2]
[326980792,1715677838275,-1667.52707944,0.00012222,2]
[326980794,1715677838285,-1667.52707944,0.00012222,2]
[326980795,1715677838294,-1005.37,0.00012224,2]
[326980796,1715677838304,-1005.37,0.00012227,2]
[326980797,1715677838316,-1005.37,0.00012231,2]
[326980798,1715677838327,-1005.37,0.00012234,2]
[326980799,1715677838337,-1005.37,0.00012237,2]
[326980800,1715677838346,-1005.37,0.0001224,2]
[326980801,1715677838356,-1005.37,0.00012243,2]
[326980802,1715677838366,-1005.37,0.00012247,2]
[326980803,1715677838375,-1005.37,0.0001225,2]
[326980804,1715677838384,-1005.37,0.00012253,2]
[326980805,1715677838394,-1005.37,0.00012256,2]
[326980806,1715677838404,-1005.37,0.00012259,2]
[326980807,1715677838414,-1005.37,0.00012263,2]
[326980808,1715677838423,-10000.0,0.00012265,2]
[326980809,1715677838434,-1005.37,0.00012266,2]
[326980810,1715677838443,-1005.37,0.00012269,2]
[326980811,1715677838452,-1600.0,0.000123,4]
[326980812,1715677838462,-313.40626709,0.00012348,2]
[326980813,1715677838471,-386.254107,0.00012389,2]
[326980814,1715677838480,-175.271043,0.00012389,2]
[326980815,1715677838490,-176.02769,0.00012389,2]
[326980816,1715677838500,-159.048788,0.00012389,2]
[326980817,1715677838509,-159.040668,0.00012389,2]
[326980818,1715677838519,-2000.0,0.000124,4]
[326980819,1715677838528,-252.25206425,0.000125,2]
[326980820,1715677838538,-400.0,0.000125,4]
[326980821,1715677838547,-187.0,0.00012515,2]
[326980822,1715677838557,-386.254107,0.00012543,2]
[326980823,1715677838566,-400.0,0.000126,4]
[326980824,1715677838576,-743.78,0.00012697,2]
[326980825,1715677838585,-176.02769,0.00012698,2]
[326980826,1715677838594,-159.048788,0.00012698,2]
[326980827,1715677838603,-159.040668,0.00012698,2]
[326980828,1715677838613,-386.254107,0.00012698,2]
[326980829,1715677838622,-400.0,0.000127,4]
[326980830,1715677838632,-190.64,0.00012717,2]
[326980831,1715677838642,-1563.60941232,0.00012726,2]
[326980832,1715677838651,-346.5333,0.0001277,2]
[326980833,1715677838660,-927.1579,0.0001277,2]
[326980834,1715677838671,-974.788,0.0001277,2]
[326980835,1715677838680,-400.0,0.000128,4]
[326980836,1715677838690,-150.0,0.00012833,2]
[326980837,1715677838699,-386.254107,0.00012853,2]
[326980838,1715677838709,-268.79,0.0001286,2]
[326980839,1715677838718,-197.37821416,0.00012868,2]
[326980840,1715677838727,-957.6535589,0.00012868,2]
[326980841,1715677838737,-173.25302518,0.00012869,2]
[326980842,1715677838746,-70772.35753464,0.0001287,2]
[326980843,1715677839009,-1256.86129027,0.0001287,2]
[326980951,1715677843374,-1251.9332099,0.0001287,2]
[326980954,1715677843384,-500.0,0.00012876,2]
[326980957,1715677843395,-500.0,0.00012876,2]
[326980959,1715677843404,-500.0,0.00012876,2]
[326980962,1715677843416,-500.0,0.00012876,2]
[326980965,1715677843425,-500.0,0.00012876,2]
[326980967,1715677843434,-561.5580777,0.00012876,2]
[326980970,1715677843443,-500.0,0.00012876,2]
[326980972,1715677843452,-351.15584557,0.00012876,2]
[326980982,1715677843540,-148.84415443,0.00012876,2]
[326980984,1715677843549,-500.0,0.00012876,2]
[326980986,1715677843558,-120.77449572,0.00012876,2]
[326980989,1715677843570,-379.22550428,0.00012876,2]
[326980990,1715677843579,-500.0,0.00012876,2]
[326980991,1715677843587,-476.08326191,0.00012876,2]
[326980992,1715677843596,-25.74799653,0.00012876,2]
[326981027,1715677850984,150.0,0.00010959,2]
[326981028,1715677851005,150.0,0.00010959,2]
[326981029,1715677851026,150.0,0.00010959,2]
[326981030,1715677851046,150.0,0.00010959,2]
[326981031,1715677851066,150.0,0.00010959,2]
[326981032,1715677851087,150.0,0.00010959,2]
[326981033,1715677851107,150.0,0.00010959,2]
[326981034,1715677851127,150.0,0.00010959,2]
[326981035,1715677851148,150.0,0.00010959,2]
[326981036,1715677851173,150.0,0.00010959,2]
[326981037,1715677851194,150.0,0.00010959,2]
[326981038,1715677851214,209.79307182,0.00010959,2]
[326981039,1715677851235,150.0,0.00010959,2]
[326981040,1715677851260,10265.37413274,0.00010959,2]
[326981041,1715677851283,9940.16,0.00010959,2]
[326981071,1715678039308,80499.62061514,0.0003,120]
[326981076,1715678072193,250000.0,0.0003,120]
[326981407,1715678442618,4000.0,0.0003,120]
[326981568,1715678930357,-1000.0,0.00028713,60]
[326981569,1715678930381,-1000.0,0.00028713,60]
[326981570,1715678930406,-231.61820372,0.00028713,60]
[326981571,1715678930429,-160.0,0.00028713,30]
[326981572,1715678930453,-522.42947144,0.00028713,60]
[326981573,1715678930476,-1028.91772401,0.00028713,30]
[326981574,1715678930500,-236.82139303,0.00028713,120]
[326981575,1715678930524,-236.55698554,0.00028713,120]
[326981576,1715678930548,-375.96971581,0.00028713,120]
[326981577,1715678930572,-151.21476719,0.00028713,30]
[326981578,1715678930595,-210.53638544,0.00028713,120]
[326981579,1715678930618,-10000.0,0.00028713,30]
[326981580,1715678930642,-14249.3904,0.00028713,30]
[326981581,1715678930666,-970.0,0.00028713,30]
[326981582,1715678930694,-352.02554234,0.00028713,30]
[326981583,1715678930719,-523.18560753,0.00028713,30]
[326981584,1715678930742,-189.0,0.00028713,30]
[326981585,1715678930768,-189.0,0.00028713,30]
[326981586,1715678930790,-485.32923457,0.00028713,120]
[326981587,1715678930813,-550.88707831,0.00028713,120]
[326981588,1715678930837,-2968.60152362,0.00028713,30]
[326981589,1715678930860,-2588.48670344,0.00028713,30]
[326981590,1715678930884,-5497.166972,0.00028713,30]
[326981591,1715678930908,-59439.39687444,0.00028713,30]
[326981592,1715678930942,-2171.42227364,0.00028713,30]
[326981593,1715678930968,-713.11668592,0.00028713,120]
[326981594,1715678930994,-500.0,0.00028713,31]
[326981595,1715678931017,-25782.0,0.00028713,30]
[326981596,1715678931040,-2015.53006693,0.00028713,120]
[326981597,1715678931063,-1000.0,0.00028713,120]
[326981598,1715678931087,-189.0,0.00028713,30]
[326981599,1715678931111,-10158.45653272,0.00028713,30]
[326981600,1715678931134,-4135.8877772,0.00028713,30]
[326981601,1715678931162,-15187.51254713,0.00028713,30]
[326981602,1715678931185,-2510.30186006,0.00028713,30]
[326981603,1715678931209,-46866.06970698,0.00028713,30]
[326981604,1715678931232,-201.0,0.00028713,120]
[326981605,1715678931256,-2504.09099834,0.00028713,30]
[326981606,1715678931279,-320.02376415,0.00028713,30]
[326981607,1715678931563,-2021.5853,0.00028713,30]
[326981608,1715678931591,-654.3,0.00028713,30]
[326981609,1715678931614,-194.08526072,0.00028713,90]
[326981610,1715678931637,-232.63999418,0.00028713,60]
[326981611,1715678931661,-154.77661721,0.00028713,120]
[326981612,1715678931688,-687.0,0.00028713,30]
[326981613,1715678931711,-2065.0,0.00028713,30]
[326981614,1715678931735,-4854.0,0.00028713,30]
[326981615,1715678931758,-58412.78265844,0.00028713,30]
[326981616,1715678931784,-997.408296,0.00028713,30]
[326981617,1715678931806,-326.954241,0.00028713,30]
[326981618,1715678931830,-200.0,0.00028713,30]
[326981619,1715678931852,-397.849683,0.00028713,30]
[326981620,1715678931876,-1018.84,0.00028713,60]
[326981621,1715678931899,-1018.84,0.00028713,60]
[326981622,1715678931923,-1018.84,0.00028713,60]
[326981623,1715678931946,-1018.84,0.00028713,60]
[326981624,1715678931969,-1018.84,0.00028713,60]
[326981625,1715678931992,-1018.84,0.00028713,60]
[326981626,1715678932016,-1018.84,0.00028713,60]
[326981627,1715678932038,-1019.07573915,0.00028713,60]
[326981628,1715678932062,-1000.0,0.00028713,30]
[326981629,1715678932084,-1000.0,0.00028713,30]
[326981630,1715678932107,-1000.0,0.00028713,30]
[326981631,1715678932129,-1000.0,0.00028713,30]
[326981632,1715678932151,-1000.0,0.00028713,30]
[326981633,1715678932174,-1000.0,0.00028713,30]
[326981634,1715678932197,-1000.0,0.00028713,30]
[326981635,1715678932219,-1000.0,0.00028713,30]
[326981636,1715678932241,-1392.824415,0.00028713,30]
[326981640,1715678955589,-5009.30516,0.000192,30]
[326981641,1715678955620,-200.90401587,0.0002,30]
[326981642,1715678955647,-1034.2330082,0.0002,30]
[326981643,1715678955711,-6443.73,0.00024,30]
[326981644,1715678955739,-160.42379096,0.00024657,30]
[326981645,1715678955768,-586.31830975,0.00025,30]
[326981646,1715678955807,-2000.0,0.00027397,30]
[326981647,1715678955830,-1148.54986961,0.00027397,30]
[326981648,1715678955862,-65296.83256704,0.000275,30]
[326981649,1715678955889,-164.43875142,0.00028,30]
[326981650,1715678955917,-155.0,0.000285,30]
[326981651,1715678955958,-1011.78,0.00029,90]
[326981652,1715678955983,-1208.0,0.00029192,30]
[326981653,1715678956011,-500.0,0.00029874,31]
[326981654,1715678956035,-212.83710124,0.0002988,30]
[326981655,1715678956059,-5350.0,0.000299,30]
[326981656,1715678956081,-2009.0,0.000299,30]
[326981657,1715678956105,-39166.33076833,0.0003,30]
[326981658,1715678956126,-341.0,0.0003,30]
[326981659,1715678956148,-1009.02170074,0.0003,30]
[326981660,1715678956172,-164.11497705,0.0003,30]
[326981661,1715678956194,-1171.13800416,0.0003,60]
[326981662,1715678956217,-518.44053292,0.0003,30]
[326981663,1715678956242,-472.37,0.00030027,30]
[326981664,1715678956271,-55009.14972905,0.00032,120]
[326981665,1715678956294,-944.6399899,0.00032,33]
[326981666,1715678956318,-7063.70149741,0.00032,120]
[326981667,1715678956345,-750.0,0.00032876,30]
[326981668,1715678956368,-776.63971863,0.00032876,30]
[326981669,1715678956392,-1444.17039019,0.000329,30]
[326981670,1715678956414,-678.36767741,0.000329,30]
[326981671,1715678956437,-900.0,0.00033,34]
[326981672,1715678956460,-472.37,0.00033143,30]
[326981673,1715678956483,-1833.7,0.00033151,120]
[326981674,1715678956506,-1999.23,0.00033151,120]
[326981675,1715678956531,-391.95245693,0.00033811,38]
[326981676,1715678956553,-393.19792641,0.00033811,40]
[326981677,1715678956575,-2706.13263394,0.00033811,40]
[326981678,1715678956598,-1088.91472412,0.00033811,40]
[326981679,1715678956621,-1043.11774499,0.00033811,40]
[326981680,1715678956643,-191.71244953,0.00033811,40]
[326981681,1715678956666,-900.0,0.00034,35]
[326981682,1715678956691,-173.84400228,0.0003411,30]
[326981683,1715678956713,-1000.0,0.000342,120]
[326981684,1715678956737,-173.84400228,0.00034521,30]
[326981685,1715678956763,-300.0,0.00034704,120]
[326981686,1715678956786,-173.84400228,0.00034904,30]
[326981687,1715678956809,-2252295.74227529,0.00035,30]
[326981688,1715678956831,-153.6388526,0.00035,30]
[326981689,1715678956854,-1324.11966848,0.00035,30]
[326981690,1715678956878,-3065.40422039,0.00035,30]
[326981691,1715678956901,-436.22786997,0.00035,30]
[326981692,1715678956927,-12171.0,0.00035,30]
[326981693,1715678956950,-900.0,0.00035,36]
[326981694,1715678956974,-200.0,0.00035,30]
[326981695,1715678956997,-450.0,0.0003502,30]
[326981696,1715678957021,-173.84400228,0.00035315,30]
[326981697,1715678957047,-2416.0,0.00035359,120]
[326981698,1715678957071,-300.0,0.00035385,120]
[326981699,1715678957265,-1072.88145032,0.000356,30]
[326981700,1715678957289,-173.84400228,0.00035726,30]
[326981701,1715678957312,-900.0,0.00036,30]
[326981702,1715678957335,-500000.0,0.00036,30]
[326981703,1715678957359,-429.58033732,0.00036065,120]
[326981704,1715678957382,-173.84400228,0.00036137,30]
[326981705,1715678957405,-472.37,0.00036258,30]
[326981706,1715678957429,-5000.0,0.000365,30]
[326981707,1715678957451,-1860.60630936,0.000368,60]
[326981708,1715678957474,-1000000.0,0.00037,30]
[326981709,1715678957498,-1000000.0,0.00037,30]
[326981710,1715678957523,-288.59950679,0.00037,30]
[326981711,1715678962173,-999711.40049321,0.00037,30]
[326981712,1715678962197,-1000000.0,0.00037,30]
[326981713,1715678962220,-900.0,0.00037,38]
[326981714,1715678962244,-500000.0,0.00037,35]
[326981715,1715678962266,-2201.0,0.00037,60]
[326981716,1715678962289,-450.0,0.000375,30]
[326981717,1715678962316,-5125.25,0.00038,120]
[326981718,1715678962340,-1000000.0,0.00038,30]
[326981719,1715678962363,-1000000.0,0.00038,30]
[326981720,1715678962386,-491612.34950679,0.00038,30]
[326981727,1715679032262,-364.13332052,9.708e-05,2]
[326981728,1715679032272,-150.0,9.709e-05,2]
[326981729,1715679032282,-237.16022138,9.71e-05,2]
[326981730,1715679032291,-1537.2714121,9.71e-05,2]
[326981731,1715679032336,-823.76715923,9.71e-05,2]
[326981732,1715679032346,-313.61870849,9.71e-05,2]
[326981733,1715679032356,-155.0,9.711e-05,2]
[326981734,1715679032365,-601.61199965,9.713e-05,2]
[326981735,1715679032375,-210.0,0.0001068,2]
[326981736,1715679032384,-250.0,0.00010916,2]
[326981737,1715679032394,-662.15,0.00010929,2]
[326981738,1715679032403,-553.73,0.00010936,2]
[326981739,1715679032413,-250.0,0.0001094,2]
[326981740,1715679032423,-4218.7365428,0.00010986,2]
[326981741,1715679032434,-3574.00380847,0.00010986,2]
[326981742,1715679032445,-6429.90132334,0.00010986,2]
[326981743,1715679032456,-6198.26527444,0.00010986,2]
[326981744,1715679032468,-3459.09305095,0.00010986,2]
[326981745,1715679032477,-499.76805224,0.00011,2]
[326981746,1715679032487,-499.99,0.00011,2]
[326981747,1715679032496,-190.64,0.0001101,2]
[326981748,1715679032506,-904.83,0.0001127,2]
[326981749,1715679032515,-904.83,0.00011273,2]
[326981750,1715679032524,-904.83,0.00011276,2]
[326981751,1715679032534,-446.27,0.00011279,2]
[326981752,1715679032543,-904.83,0.00011279,2]
[326981753,1715679032553,-208.68,0.00011281,2]
[326981754,1715679032564,-904.83,0.00011282,2]
[326981755,1715679032573,-904.83,0.00011285,2]
[326981756,1715679032583,-904.83,0.00011288,2]
[326981757,1715679032592,-904.83,0.00011291,2]
[326981758,1715679032601,-904.83,0.00011294,2]
[326981759,1715679032610,-904.83,0.00011297,2]
[326981761,1715679032619,-904.83,0.000113,2]
[326981763,1715679032628,-904.83,0.00011303,2]
[326981765,1715679032637,-904.83,0.00011306,2]
[326981767,1715679032646,-904.83,0.00011309,2]
[326981769,1715679032655,-904.83,0.00011312,2]
[326981771,1715679032665,-904.83,0.00011314,2]
[326981773,1715679032674,-904.83,0.00011317,2]
[326981775,1715679032682,-904.83,0.0001132,2]
[326981777,1715679032691,-904.83,0.00011323,2]
[326981779,1715679032701,-904.83,0.00011326,2]
[326981781,1715679032714,-868.95,0.000114,2]
[326981783,1715679032723,-154.67,0.00011452,2]
[326981785,1715679032732,-154.67,0.00011457,2]
[326981787,1715679032743,-154.67,0.00011462,2]
[326981789,1715679032753,-154.67,0.00011467,2]
[326981791,1715679032762,-154.67,0.00011471,2]
[326981793,1715679032771,-154.67,0.00011476,2]
[326981795,1715679032780,-154.67,0.00011481,2]
[326981797,1715679032791,-154.67,0.00011486,2]
[326981799,1715679032801,-154.67,0.0001149,2]
[326981801,1715679032810,-154.67,0.00011495,2]
[326981803,1715679032820,-154.67,0.000115,2]
[326981805,1715679032830,-154.67,0.00011505,2]
[326981807,1715679032839,-154.67,0.0001151,2]
[326981809,1715679032849,-868.95,0.00011541,2]
[326981811,1715679032858,-868.95,0.00011541,2]
[326981813,1715679032867,-868.95,0.00011541,2]
[326981815,1715679032876,-1667.52707944,0.00011873,2]
[326981816,1715679032885,-1667.52707944,0.00011873,2]
[326981817,1715679032895,-868.95,0.00011941,2]
[326981818,1715679032904,-868.95,0.00011941,2]
[326981819,1715679032914,-893.0,0.00012,2]
[326981820,1715679032924,-300.0,0.00012,4]
[326981821,1715679032932,-868.95,0.00012041,2]
[326981822,1715679032941,-180.01,0.00012056,2]
[326981823,1715679032950,-187.0,0.00012089,2]
[326981824,1715679032959,-347.86,0.000121,2]
[326981825,1715679032968,-600.0,0.000121,4]
[326981826,1715679032977,-421.22,0.00012141,2]
[326981827,1715679032987,-868.95,0.00012141,2]
[326981828,1715679032996,-1000.0,0.000122,4]
[326981829,1715679033005,-10000.0,0.00012275,2]
[326981830,1715679033015,-1300.0,0.000123,4]
[326981831,1715679033024,-553.73,0.00012303,2]
[326981832,1715679033033,-193.127055,0.00012389,2]
[326981833,1715679033043,-154.501643,0.00012389,2]
[326981834,1715679033052,-175.271043,0.00012389,2]
[326981835,1715679033061,-176.02769,0.00012389,2]
[326981836,1715679033070,-159.040668,0.00012389,2]
[326981837,1715679033079,-159.048788,0.00012389,2]
[326981838,1715679033088,-193.127053,0.00012389,2]
[326981839,1715679033097,-344.527819,0.00012389,2]
[326981840,1715679033106,-418.468389,0.00012389,2]
[326981841,1715679033116,-181.864357,0.00012389,2]
[326981842,1715679033125,-1700.0,0.000124,4]
[326981843,1715679033134,-1000.0,0.000125,2]
[326981844,1715679033143,-252.25206425,0.000125,2]
[326981845,1715679033152,-300.0,0.000125,4]
[326981846,1715679033162,-154.501643,0.00012543,2]
[326981847,1715679033171,-344.527819,0.00012543,2]
[326981848,1715679033180,-418.468389,0.00012543,2]
[326981849,1715679033189,-181.864357,0.00012595,2]
[326981850,1715679033198,-300.0,0.000126,4]
[326981851,1715679033207,-1008.0,0.000126,2]
[326981852,1715679033217,-1563.60941232,0.0001267,2]
[326981853,1715679033226,-446.27,0.00012689,2]
[326981854,1715679033235,-208.68,0.00012691,2]
[326981855,1715679033246,-154.501643,0.00012698,2]
[326981856,1715679033254,-344.527819,0.00012698,2]
[326981857,1715679033263,-418.468389,0.00012698,2]
[326981858,1715679033272,-300.0,0.000127,4]
[326981859,1715679033282,-1000.0,0.000127,2]
[326981860,1715679033291,-346.5333,0.0001277,2]
[326981861,1715679033300,-846.8924,0.0001277,2]
[326981862,1715679033310,-927.1579,0.00012776,2]
[326981863,1715679033318,-1257.8,0.000128,2]
[326981864,1715679033328,-155.93142264,0.000128,2]
[326981865,1715679033337,-300.0,0.000128,4]
[326981866,1715679033346,-181.864357,0.00012802,2]
[326981867,1715679033356,-154.501643,0.00012853,2]
[326981868,1715679033365,-344.527819,0.00012853,2]
[326981869,1715679033375,-418.468389,0.00012853,2]
[326981870,1715679033384,-200.0,0.00012855,2]
[326981871,1715679033393,-957.6535589,0.00012868,2]
[326981872,1715679033402,-173.25302518,0.00012869,2]
[326981873,1715679033412,-537.03498854,0.00012876,2]
[326981874,1715679033421,-511.89812392,0.00012876,2]
[326981875,1715679033431,-500.0,0.00012876,2]
[326981876,1715679033440,-429.98,0.00012876,2]
[326981877,1715679033449,-519.38293849,0.00012876,2]
[326981878,1715679033458,-506.61589055,0.00012876,2]
[326981879,1715679033467,-500.0,0.00012876,2]
[326981880,1715679033476,-500.0,0.00012876,2]
[326981881,1715679033485,-500.0,0.00012876,2]
[326981882,1715679033495,-500.0,0.00012876,2]
[326981883,1715679033504,-500.0,0.00012876,2]
[326981884,1715679033514,-187.51178374,0.00012876,2]
[326981885,1715679033524,-500.0,0.00012876,2]
[326981886,1715679033534,-500.0,0.00012876,2]
[326981887,1715679033543,-500.0,0.00012876,2]
[326981888,1715679033552,-2712.0939,0.00012876,2]
[326981889,1715679033561,-169.27290093,0.00012876,2]
[326981890,1715679033570,-208.50474935,0.00012876,2]
[326981891,1715679033580,-509.02062877,0.00012876,2]
[326981892,1715679033589,-181.46,0.00012876,2]
[326981893,1715679033598,-507.79744307,0.00012876,2]
[326981894,1715679033608,-500.0,0.00012876,2]
[326981895,1715679033617,-500.0,0.00012876,2]
[326981896,1715679033626,-500.0,0.00012876,2]
[326981897,1715679033635,-500.0,0.00012876,2]
[326981898,1715679033645,-506.74611959,0.00012876,2]
[326981899,1715679033654,-500.0,0.00012876,2]
[326981900,1715679033663,-500.0,0.00012876,2]
[326981901,1715679033673,-348.02,0.00012876,2]
[326981902,1715679033682,-500.0,0.00012876,2]
[326981903,1715679033691,-500.0,0.00012876,2]
[326981904,1715679033700,-238.55,0.00012876,2]
[326981905,1715679033715,-504.88951451,0.00012876,2]
[326981906,1715679033726,-500.0,0.00012876,2]
[326981907,1715679033735,-291.44590354,0.00012876,2]
[326981908,1715679033746,-500.0,0.00012876,2]
[326981909,1715679033757,-500.0,0.00012876,2]
[326981910,1715679033767,-506.85787002,0.00012876,2]
[326981911,1715679033776,-500.0,0.00012876,2]
[326981912,1715679033788,-626.12031609,0.00012876,2]
[326981913,1715679033797,-500.0,0.00012876,2]
[326981914,1715679033806,-500.0,0.00012876,2]
[326981915,1715679033815,-493.0,0.00012876,2]
[326981916,1715679033826,-510.18678494,0.00012876,2]
[326981917,1715679033835,-356.58853798,0.00012876,2]
[326981918,1715679033845,-500.0,0.00012876,2]
[326981919,1715679033855,-169.4487789,0.00012876,2]
[326981920,1715679033864,-505.78290467,0.00012876,2]
[326981921,1715679033874,-500.0,0.00012876,2]
[326981922,1715679033883,-500.0,0.00012876,2]
[326981923,1715679033893,-500.0,0.00012876,2]
[326981924,1715679033902,-500.0,0.00012876,2]
[326981925,1715679033912,-500.0,0.00012876,2]
[326981926,1715679033921,-472.79929521,0.00012876,2]
[326981927,1715679033931,-500.0,0.00012876,2]
[326981928,1715679033940,-480.0,0.00012876,2]
[326981929,1715679033950,-500.0,0.00012876,2]
[326981930,1715679033959,-512.49202437,0.00012876,2]
[326981931,1715679033968,-209.49942135,0.00012876,2]
[326981932,1715679033977,-205.71,0.00012876,2]
[326981933,1715679033987,-1200.0,0.00012888,2]
[326981934,1715679033996,-764.85,0.00012888,2]
[326981935,1715679034005,-321.886,0.00012888,2]
[326981936,1715679034014,-246.21,0.0001289,2]
[326981937,1715679034023,-500.0,0.00012895,2]
[326981938,1715679034033,-200.0,0.00012896,2]
[326981939,1715679034042,-500.0,0.00012896,2]